Cogmind - Beta 16 @@@ ROGUE MODE // 2025.12.15 @ 19:32:50 Player: tsintsir Result: Destroyed by Y-45 Defender with Heavy Assault Rifle Performance ------------- Evolutions (1) 500 Regions Visited (4) 800 Robots Destroyed (45) 225 Value Destroyed (1105) 1105 Prototype IDs (4) 80 Alien Tech Used (0) 0 Bonus (448) 448 TOTAL SCORE: 3158 Bonus ------- High Alert Combat Kills 74 Follower Combat Kills 174 Entered Garrisons 200 Cogmind --------- Core Integrity 0/400 Matter 300/300 Energy 98/100 System Corruption 0% Temperature Hot (207) Movement Core (50) Location -9/Garrison Parts ------- > --- POWER (1) -------- (None) > --- PROPULSION (2) --- (None) > --- UTILITY (3) ------ (None) > --- WEAPON (3) ------- (None) > --- INVENTORY (5) ---- Improved Ion Engine Light Treads Terrain Scanner Weapon Shielding Peak State ------------ > --- POWER ------------ Cooled Ion Engine > --- PROPULSION ------- Light Treads Light Treads > --- UTILITY ---------- Large Storage Unit Advanced Targeting Computer Advanced Targeting Computer > --- WEAPON ----------- Beam Rifle Advanced Beam Rifle Advanced Beam Rifle > --- INVENTORY -------- Improved Ion Engine Improved Ion Engine Light Treads Light Treads Heat Sink Terrain Scanner Weapon Shielding Beam Cannon [Rating: 23] Favorites ----------- Power Improved Ion Engine Engine Improved Ion Engine Propulsion Light Treads Treads Light Treads Utility Large Storage Unit Device Sensor Array Storage Large Storage Unit Processor Advanced Targeting Computer Protection Weapon Shielding Weapon Beam Cannon Energy Gun Advanced Beam Rifle Energy Cannon Beam Cannon Build | -11 -10 -9 -9 -9 ------- Run | Yrd Mat Mat Sto Gar Slots Evolved 2 | . . 2 . . Power . | . . . . . Propulsion . | . . . . . Utility 1 | . . 1 . . Weapon 1 | . . 1 . . Parts Attached 26 | 6 5 5 7 3 Power 4 | 1 1 . 1 1 Engine 4 | 1 1 . 1 1 Core . | . . . . . Reactor . | . . . . . Propulsion 5 | 2 . . 2 1 Treads 5 | 2 . . 2 1 Leg . | . . . . . Wheel . | . . . . . Hover . | . . . . . Flight . | . . . . . Utility 7 | 1 2 2 1 1 Device 2 | . 1 . . 1 Storage 2 | 1 1 . . . Processor 2 | . . 1 1 . Hackware . | . . . . . Protection 1 | . . 1 . . Artifact . | . . . . . Weapon 10 | 2 2 3 3 . Energy Gun 8 | 2 . 3 3 . Energy Cannon 2 | . 2 . . . Ballistic Gun . | . . . . . Ballistic Cannon . | . . . . . Launcher . | . . . . . Special Weapon . | . . . . . Impact Weapon . | . . . . . Slashing Weapon . | . . . . . Piercing Weapon . | . . . . . Special Melee Weapon . | . . . . . Unidentified Prototypes 2 | . . 1 1 . Parts Lost 10 | . . . 1 9 Power 2 | . . . . 2 Propulsion 2 | . . . . 2 Utility 2 | . . . 1 1 Weapon 4 | . . . . 4 Highest Loss Streak 9 | . . . 1 9 To Critical Strikes . | . . . . . Average Backups 6 | 1 5 7 7 7 Power 1 | . 1 2 1 1 Propulsion 1 | 1 2 2 1 1 Utility 2 | . . 2 3 2 Weapon . | . 1 . . . Tool/Special . | . . . . . Unused Backups 7 | . 1 3 1 2 Power 2 | . 1 . 1 . Propulsion 4 | . . 3 . 1 Utility 1 | . . . . 1 Weapon . | . . . . . Tool/Special . | . . . . . Average Slot Usage (%) 97 | . 92 99 99 94 Engine 11 | . 13 11 11 10 Treads 22 | . 28 22 22 20 Device 7 | . 8 10 5 . Storage 11 | . 14 11 10 10 Processor 9 | . . 6 16 20 Protection 1 | . . 4 . . Energy Gun 17 | . 8 17 23 20 Energy Cannon 14 | . 19 15 9 10 Peak Build Rating 23 | 6 9 19 23 18 Average Rating 14 | 4 7 15 18 16 On Entrance 10 | . 6 8 19 18 Avg Prop Armor Cover (%) . | . . . . . Naked Turns 4 | . . . . 4 Heaviest Build 37 | 13 34 37 37 37 Greatest Support 40 | 40 40 40 40 40 Greatest Overweight (x) 2 | . . . . 2 Average Overweight (x) . | . . . . . Largest Inventory Capacity 15 | 8 15 15 15 15 Average Capacity 14 | 6 12 15 14 14 Most Carried 10 | 3 8 10 9 8 Average Carried 6 | 1 5 7 7 7 Final Capacity 15 | 8 15 15 15 5 Final Carried 9 | 3 7 9 8 4 Class Distribution -------------------- 37% | Gunner 26% | Mutant 20% | Scavenger-Gunner 15% | Skirmisher Dominant Class ---------------- Mutant | -10/Materials Gunner | -9/Materials Gunner | -9/Storage Scavenger-Gunner | -9/Garrison Resources | -11 -10 -9 -9 -9 ----------- Run | Yrd Mat Mat Sto Gar Matter Collected 547 | 260 47 73 119 48 Remotely . | . . . . . Salvage Created 1481 | 64 83 391 692 251 Parts 91 | 3 12 16 41 19 Haulers Intercepted . | . . . . . Recyclers Shooed . | . . . . . Parts Field Recycled . | . . . . . Retrieved Matter . | . . . . . Parts Self-Destructed . | . . . . . Prevented . | . . . . . Parts Restored . | . . . . . Kills | -11 -10 -9 -9 -9 ------- Run | Yrd Mat Mat Sto Gar Combat Hostiles Destroyed 37 | . 3 6 16 12 Guns 28 | . . 6 12 10 Cannons 9 | . 3 . 4 2 Classes Destroyed 8 | 1 2 3 2 . Recycler 3 | 1 . 2 . . Mechanic 3 | . . 1 2 . Watcher 2 | . 2 . . . Swarmer 14 | . 3 . 3 8 Grunt 15 | . . 5 7 3 Brawler 4 | . . 1 3 . Duelist 3 | . . . 2 1 Sentry 1 | . . . 1 . Best Kill Streak 5 | 1 3 4 5 4 Combat Bots Only 4 | . 3 3 4 4 Max Kills in Single Turn 2 | 1 2 1 2 1 Gunslinging . | . . . . . Exploded . | . . . . . Melee . | . . . . . Uniques/NPCs Destroyed . | . . . . . Combat | -11 -10 -9 -9 -9 -------- Run | Yrd Mat Mat Sto Gar Hostile Shots Fired 155 | . 4 11 44 96 Missed 39 | . 1 4 14 20 Hits 116 | . 3 7 30 76 Melee 3 | . . . 3 . Projectile 113 | . 3 7 27 76 Critical Strikes 1 | . . . . 1 Damage Taken 1440 | . 23 73 428 916 Core 419 | . 9 10 82 318 Absorbed by Shields . | . . . . . Regen/Repaired (Parts) 228 | . . 7 221 . Core Remaining (%) 98 | 100 96 . . . Volleys Fired 78 | 2 5 22 25 24 Largest 3 | 2 2 3 3 3 Hottest 182 | 90 120 182 182 181 Shots Fired 213 | 4 10 66 75 58 Gun 131 | 4 2 33 54 38 Cannon 82 | . 8 33 21 20 Launcher . | . . . . . Special . | . . . . . Kinetic . | . . . . . Thermal 213 | 4 10 66 75 58 Explosive . | . . . . . Electromagnetic . | . . . . . Robot Hit Streak 12 | 3 3 10 12 8 Robot Miss Streak 2 | . 2 1 2 2 Penetration Max . | . . . . . Secondary Targets 1 | . . . 1 . Max Gunslinging Chain 1 | . . . 1 . Shots Hit Robots 109 | 3 5 18 47 36 Core Hits 58 | 2 5 9 28 14 Critical Kills . | . . . . . Critical Parts Destroyed . | . . . . . Critical Strikes 9 | 1 . 3 3 2 Burn 9 | 1 . 3 3 2 Melee Attacks . | . . . . . Impact . | . . . . . Slashing . | . . . . . Piercing . | . . . . . Sneak Attacks . | . . . . . Combat Hostiles . | . . . . . Follow-up Attacks . | . . . . . Damage Inflicted 1950 | 38 98 350 891 573 Guns 1373 | 38 12 280 648 395 Cannons 572 | . 86 70 243 173 Explosions . | . . . . . Melee . | . . . . . Ramming 5 | . . . . 5 Kinetic . | . . . . . Thermal 1945 | 38 98 350 891 568 Explosive . | . . . . . Electromagnetic . | . . . . . Impact . | . . . . . Slashing . | . . . . . Piercing . | . . . . . Highest Corruption . | . . . . . Average Corruption . | . . . . . Corruption Purged . | . . . . . Corruption Blocked . | . . . . . Overload Shots . | . . . . . Overflow Damage . | . . . . . Projectiles . | . . . . . Explosions . | . . . . . Melee . | . . . . . Knockbacks . | . . . . . Impact . | . . . . . Kinetic . | . . . . . Secondary . | . . . . . Self-Inflicted Damage 2 | . . . . 2 Shots . | . . . . . Rammed 1 | . . . . 1 Targets Rammed 1 | . . . . 1 Kicked . | . . . . . Crushed . | . . . . . Highest Temperature 559 | 60 189 370 513 559 Average Temperature 175 | 31 74 110 195 261 Received Heat Transfer 441 | . . 42 117 282 Effects 35 | . . 3 14 18 Shutdowns 6 | . . 1 3 2 Energy Bleed 8 | . . 2 4 2 Interference 4 | . . . . 4 Matter Decay 2 | . . . 1 1 Short Circuit 3 | . . . 2 1 Damage (minor) 1 | . . . . 1 Damage (major) 10 | . . . 4 6 Damage (core) 1 | . . . . 1 Siege Activations . | . . . . . Martial Activations . | . . . . . Shielding Activations . | . . . . . Robots Disrupted . | . . . . . Combat Hostiles . | . . . . . Robots Corrupted . | . . . . . Combat Hostiles . | . . . . . Parts Fried . | . . . . . Impact Corruptions . | . . . . . Robots Melted . | . . . . . Combat Hostiles . | . . . . . Parts Melted 10 | 1 . 2 2 5 Heat Transferred 4971 | 173 210 888 2220 1480 Parts Sabotaged . | . . . . . Parts Stolen . | . . . . . Parts Stripped . | . . . . . Power Chain Reactions . | . . . . . Alert | -11 -10 -9 -9 -9 ------- Run | Yrd Mat Mat Sto Gar Maximum Alert Level 2 | . . . 2 2 Low Security (%) 75 | 100 100 100 50 . Level 1 11 | . . . 38 28 Level 2 12 | . . . 11 71 Level 3 . | . . . . . Level 4 . | . . . . . Level 5 . | . . . . . High Security . | . . . . . Max Security . | . . . . . Peak Influence 599 | 5 70 105 465 599 Initial 299 | . . 11 41 299 Average 115 | . 15 10 208 452 Influence Increases 1297 | 5 89 157 676 370 Destroy 0b10 Robot/C 900 | . 60 120 480 240 Destroy 0b10 Robot/NC 40 | 5 10 15 10 . Destroy Leader 154 | . 14 20 100 20 Allied During Kill 50 | . . . 50 . Successful Hack 27 | . 5 2 20 . Disable Machine 15 | . . . 15 . Anti-Garrison Action 50 | . . . . 50 Destroy Structure 1 | . . . 1 . Lose Combat Pursuer 60 | . . . . 60 Influence Decreases 718 | 5 62 85 314 252 Entered New Map 236 | . . 16 58 162 Time Decay 342 | 5 62 69 206 . Lost Part 100 | . . . 10 90 Lost Ally 40 | . . . 40 . Squads Dispatched 7 | . . 1 6 . Investigation 2 | . . 1 1 . Extermination . | . . . . . Reinforcement . | . . . . . Assault 2 | . . . 2 . Garrison 3 | . . . 3 . Intercept . | . . . . . Searches Triggered . | . . . . . Construction Impeded . | . . . . . Haulers Reinforced . | . . . . . Active Scanning Responses . | . . . . . Cargo Convoy Interrupts . | . . . . . Stealth | -11 -10 -9 -9 -9 --------- Run | Yrd Mat Mat Sto Gar Distress Signals . | . . . . . Communications Jammed . | . . . . . Distress Signals . | . . . . . Times Spotted 55 | . 5 7 27 16 Peak Tracking Total 8 | . 3 3 8 6 Tactical Retreats 1 | . . . . 1 Traps | -11 -10 -9 -9 -9 ------- Run | Yrd Mat Mat Sto Gar Traps Triggered 1 | . . . 1 . Indirectly . | . . . . . Trap Hack Attempts . | . . . . . Triggered . | . . . . . Disarmed . | . . . . . Reprogrammed . | . . . . . Reused . | . . . . . Traps Extracted . | . . . . . Installed . | . . . . . Triggered . | . . . . . Machines | -11 -10 -9 -9 -9 ---------- Run | Yrd Mat Mat Sto Gar Machines Disabled 1 | . . . 1 . Max in Single Turn 1 | . . . 1 . Machines Repaired . | . . . . . Machines Dismantled . | . . . . . Machines Sabotaged . | . . . . . Overloaded Fab Kills . | . . . . . Hacking | -11 -10 -9 -9 -9 --------- Run | Yrd Mat Mat Sto Gar Machines Accessed 8 | . 2 1 4 1 Terminals 5 | . 2 . 2 1 Fabricators . | . . . . . Repair Stations 2 | . . 1 1 . Recycling Units . | . . . . . Scanalyzers . | . . . . . Garrison Access 1 | . . . 1 . Total Hacks 17 | . 4 3 8 2 Successful 11 | . 3 3 5 . Failed 6 | . 1 . 3 2 Catastrophic 1 | . . . . 1 Database Lockouts . | . . . . . Manual 3 | . . . 3 . Terminals 10 | . 4 . 4 2 Fabricators . | . . . . . Repair Stations 6 | . . 3 3 . Recycling Units . | . . . . . Scanalyzers . | . . . . . Garrison Access 1 | . . . 1 . Terminal Hacks 5 | . 3 . 2 . Robot Analysis 1 | . . . 1 . Prototype ID Bank 1 | . 1 . . . Open Door 1 | . . . 1 . Branch Access Points 1 | . 1 . . . Zone Layout 1 | . 1 . . . Fabricator Hacks . | . . . . . Repair Station Hacks 5 | . . 3 2 . Scan Component 3 | . . 2 1 . Repair 2 | . . 1 1 . Recycling Unit Hacks . | . . . . . Scanalyzer . | . . . . . Garrison Access Hacks 1 | . . . 1 . Unlock Access 1 | . . . 1 . Unauthorized Hacks . | . . . . . Terminals . | . . . . . Fabricators . | . . . . . Repair Stations . | . . . . . Recycling Units . | . . . . . Scanalyzers . | . . . . . Garrison Access . | . . . . . Data Cores Recovered . | . . . . . Used . | . . . . . Hacking Detections 6 | . 1 1 3 1 Full Trace Events 3 | . . 1 1 1 Feedback Events . | . . . . . Feedback Blocked . | . . . . . Robot Schematics Acquired . | . . . . . Robots Built . | . . . . . Authchips . | . . . . . Time . | . . . . . Total Robot Build Rating . | . . . . . Part Schematics Acquired . | . . . . . Parts Built . | . . . . . Authchips . | . . . . . Time . | . . . . . Total Part Build Rating . | . . . . . Part Studies Acquired . | . . . . . Parts Repaired 2 | . . 1 1 . Time 52 | . . 26 26 . Parts Recycled . | . . . . . Recycled Matter . | . . . . . Retrieved Matter . | . . . . . Retrieved Components . | . . . . . Parts Scanalyzed . | . . . . . Part Schematics Acquired . | . . . . . Parts Damaged . | . . . . . Bothacking | -11 -10 -9 -9 -9 ------------ Run | Yrd Mat Mat Sto Gar Used RIF Installer . | . . . . . Robots Hacked . | . . . . . Non-combat . | . . . . . Combat . | . . . . . Robot Hacks Applied . | . . . . . Relay Couplers Released . | . . . . . Fabnet Peak Effective % . | . . . . . Robots Rewired . | . . . . . Allies Hacked . | . . . . . Hacks Repelled . | . . . . . Allies | -11 -10 -9 -9 -9 -------- Run | Yrd Mat Mat Sto Gar Total Allies 2 | . . . 2 . Largest Group 2 | . . . 2 . Highest-Rated Group 62 | . . . 62 . Highest-Rated Ally 31 | . . . 31 . Total Orders . | . . . . . Ally Attacks 26 | . . . 26 . Total Damage 489 | . . . 489 . Kills 8 | . . . 8 . Allies Corrupted . | . . . . . Allies Melted . | . . . . . Intel | -11 -10 -9 -9 -9 ------- Run | Yrd Mat Mat Sto Gar Active Infowar (turns) 1289 | . 191 898 200 . Sensors 1289 | . 191 898 200 . Robot Analysis Total 1 | . . . 1 . Derelict Logs Recovered . | . . . . . Drone Launches . | . . . . . Drone Recoveries . | . . . . . Exploration | -11 -10 -9 -9 -9 ------------- Run | Yrd Mat Mat Sto Gar Turns Passed 2075 | 88 341 924 424 298 Spaces Moved 710 | 46 185 174 186 119 Core 12 | 3 . . . 9 Treads 698 | 43 185 174 186 110 Legs . | . . . . . Wheels . | . . . . . Hover . | . . . . . Flight . | . . . . . Fastest Speed 50 | 50 160 160 160 50 Average Speed 158 | 152 160 160 160 155 Slowest Speed 240 | 160 160 160 160 240 Overloaded Moves . | . . . . . Propulsion Burnouts . | . . . . . Robots Hopped . | . . . . . Potential Cave-ins . | . . . . . Cave-ins Triggered . | . . . . . Exploration Rate (%) 26 | 4 40 17 31 38 Regions Visited 4 Branch Regions 1 Pre-discovered Areas . | . . . . . Known Exits Taken 1 | . . . 1 . Unknown Exits Taken 3 | 1 1 1 . . Scrap Searched . | . . . . . Spaces Dug . | . . . . . Terrain Destroyed . | . . . . . Melee . | . . . . . Projectile . | . . . . . AOE . | . . . . . Terrain Rammed . | . . . . . Walls Destroyed . | . . . . . Machines Disabled . | . . . . . Actions | -11 -10 -9 -9 -9 --------- Run | Yrd Mat Mat Sto Gar Total 1493 | 57 221 771 258 186 Wait 633 | . 16 557 26 34 Move 706 | 45 184 173 185 119 Hop . | . . . . . Pick Up 16 | 4 4 5 3 . Fast Attach 21 | 5 5 5 6 . Attach 10 | 1 . 2 3 4 Detach 9 | . 3 2 4 . Swap . | . . . . . Drop 19 | . 4 5 6 4 Fire 78 | 2 5 22 25 24 Melee . | . . . . . Ram 1 | . . . . 1 Kick . | . . . . . Crush . | . . . . . Escape Stasis . | . . . . . Rewire . | . . . . . Trap . | . . . . . Miscellaneous . | . . . . . Route ------- -11/Scrapyard -10/Materials (discovered 3 exits: *Mat / *Min x2) -9/Materials -9/Storage -9/Garrison History --------- Turn | Location | Event 13 | -11/Scrapyard | Discovered new exit (range 15) 89 | -11/Scrapyard | Entered Materials 184 | -10/Materials | Discovered new exit (range 10) 317 | -10/Materials | Build established: Mutant 349 | -10/Materials | Discovered new exit (range 16) 403 | -10/Materials | Identified exit to Mines 430 | -10/Materials | Entered another Materials area 430 | -9/Materials | Evolved 2 slots: Utility x1, Weapon x1 737 | -9/Materials | Build established: Skirmisher 761 | -9/Materials | Discovered new exit (range 11) 1064 | -9/Materials | Build established: Gunner 1267 | -9/Materials | Repaired Sensor Array 1354 | -9/Materials | Entered Storage 1487 | -9/Storage | Met a pair of Derelict thieves 1559 | -9/Storage | Garrison activated, responded to threat 1695 | -9/Storage | Repaired Lrg. Storage Unit 1776 | -9/Storage | Identified exit to Garrison 1778 | -9/Storage | Entered Garrison 1902 | -9/Garrison | Triggered checkpoint 1911 | -9/Garrison | Build established: Scavenger-Gunner 2022 | -9/Garrison | Triggered checkpoint 2055 | -9/Garrison | Core integrity fell below 50% 2064 | -9/Garrison | Core integrity fell below 20% 2076 | -9/Garrison | Destroyed by Y-45 Defender with Heavy Assault Rifle Last Messages --------------- Power failure, Imp. Ion Engine shutdown. Overheating: Core damaged (-40). Beam Rifle destroyed. Overheating: Matter decay (-42). Overheating: Beam Cannon damaged (-5). Overheating: Lrg. Storage Unit damaged (-34). Overheating: Imp. Ion Engine damaged (-22). Beam Cannon destroyed. Power failure, Imp. Ion Engine shutdown. Adv. Targeting Computer broken. Overheating: Short circuit. Connecting with Garrison Terminal... ALERT: Suspicious activity at Terminal G001. Transmitting hostile system tracking data. Dropped Lrg. Storage Unit. Dropped Lgt. Treads. Discarded Broken Adv. Targeting Computer. Imp. Ion Engine destroyed. Slammed into Y-45 Defender. Acquired 48 matter. Map ----- +----------------------------------------------------+ | ?????????????????????????????????????????????????? | | ?????????????????????????????????????????????????? | | ?????????????????????????????????????????????????? | | ?????????????????????????????????????????????????? | | ?????????????????????????????????????????????????? | | ?????????????????????????????????????????????????? | | ?????????????????????????????????????????????????? | | ?????????????????????????????????????????????????? | | ?????????????????????????????????????????????????? | | ?????????????????????????????????????????????????? | | ?????????????????????????????????????????????????? | | ?????????????????????????????????????????????????? | | ??????????????????????####???????????????????????? | | ??????????????????????#""#???????????????????????? | | ??????????????????????#T #???????????????????????? | | ??????????????????????#"!#???????????????????????? | | ??????????????????????##=#???????????????????????? | | ???????????????????????# #???????????????????????? | | ???????????????????????#*#???###?????????????????? | | ???????????????????????#Y#?? #?????????????????? | | ???????????????????????#%### ##### #?????????? | | ???????????????????????#Y!== #????????? | | ???????????????????????#%=! #????????? | | ???????????????????????#[[#####T######???????????? | | ???????????????????????#! #??????????????????????? | | ???????????????????????# @#??????????????????????? | | ??????????? ############* #####################??? | | ????????? %[%[%= #??? | | ????????? [=% ^ #??? | | ????????? = #??? | | ??????????########## ###################### #??? | | ???????????????????# ?????????????????????# #??? | | ??????????????????? ??????????????????????# #??? | | ?????????????????? ???????????????????????# #??? | | ????????????????? ????????????????????????# #### | | ???????????????? ?????????????????????????# ## | | ???????????????#??????????????????????????# ##=% | | ??????????????????????????????????????????# | | ??????????????????????????????????????????# | | ??????????????????????????????????????????# | | ??????????????????????????????????????????# ## | | ??????????????????????????????????????????# ## | | ??????????????????????????????????????????" | | ??????????????????????????????????????????" | | ??????????????????????????????????????????" | | ??????????????????????????????????????????" | | ??????????????????????????????????????????# ## | | ??????????????????????????????????????????# ?# | | ??????????????????????????????????????????# ? | | ??????????????????????????????????????????# | +----------------------------------------------------+ Best States ------------- Heat Dissipation 28 Energy Generation 14 Energy Capacity 280 Matter Stores 300 Matter Capacity 300 Sight Range 16 Robot Scan Range 14 Terrain Scan Density 10 Weapon Shielding 33 Evasion (%) 40 Targeting Accuracy 16 Recoil Reduction 2 Item Schematics ----------------- None Robot Schematics ------------------ None Fabricated ------------ Nothing Repaired ---------- Sensor Array | 65% | -9/Materials Lrg. Storage Unit | 36% | -9/Storage Studied --------- None Alien Tech Used ----------------- None Achievements -------------- None Challenges ------------ None Game ------ Seed TachyonDecoyLeg Manual? 0 Play Time 00:23:20 Cumulative 13.1 hours Start 2025.12.15 @ 19:11:09 End 2025.12.15 @ 19:32:50 Sessions 1 Manual Loads 0 Difficulty Rogue Special Mode None Game No. 19 Rogue 19 Adventurer 0 Explorer 0 Win Type - Total 0 Types 0/0/0/0/0/0/0/0/0/0 Lore% 11 Gallery% 19 Achievement% 13 Wizard Run 0 Options --------- Layout 1 ASCII 0 Keyboard 0 Movement Mouse Keybinds 0 Fullscreen 2 Font 32/SmallcapsGlow Map View 50x35 Zoom Use 0% Tactical HUD 0 Map Filters NONE Filters NONE Steam 1 RUN: 6f597c42-fb35-4a13-bb85-b35093fc605e